Cogmind - Beta 10.2 @@@ ROGUE MODE // 2021.08.19 @ 00:17:20 Player: Gilgameshx13 Result: Destroyed by H-66 Slayer with Gauss Rifle Performance ------------- Evolutions (4) 2000 Regions Visited (6) 1200 Robots Destroyed (4) 20 Value Destroyed (95) 95 Prototype IDs (1) 20 Alien Tech Used (0) 0 Bonus (0) 0 TOTAL SCORE: 3335 Bonus ------- None Cogmind --------- Core Integrity 0/850 Matter 62/300 Energy 99/100 System Corruption 1% Temperature Cool (0) Movement Core (50) Location -6/Factory Parts ------- > --- POWER (2) -------- (None) > --- PROPULSION (6) --- (None) > --- UTILITY (5) ------ Improved Terrain Scan Processor > --- WEAPON (2) ------- (None) > --- INVENTORY (4) ---- Angular Momentum Engine Long-range Sensor Array Hacking Suite Gatling Laser Peak State ------------ > --- POWER ------------ Micro Nuclear Core > --- PROPULSION ------- Wheel Armored Huge Wheel Improved Hover Unit > --- UTILITY ---------- Small Storage Unit Improved Terrain Scanner Transmission Jammer Insulated Plating > --- WEAPON ----------- Gauss Rifle Gauss Rifle > --- INVENTORY -------- Micro Nuclear Core Advanced Terrain Scanner Grenade Launcher [Rating: 32] Favorites ----------- Power Micro Nuclear Core Engine Heavy Deuterium Engine Power Core Micro Nuclear Core Propulsion Armored Wheel Wheel Armored Wheel Hover Unit Improved Hover Unit Flight Unit Flight Unit Utility Small Storage Unit Device Transmission Jammer Storage Small Storage Unit Processor Improved Terrain Scan Processor Protection Insulated Plating Weapon Gauss Rifle Ballistic Gun Gauss Rifle Launcher Grenade Launcher Build | -11 -10 -9 -9 -8 -7 -6 ------- Run | Scr Mat Mat Min Mat Fac Fac Slots Evolved 8 | . . 2 . 2 2 2 Power 1 | . . . . 1 . . Propulsion 4 | . . 2 . . 1 1 Utility 3 | . . . . 1 1 1 Weapon . | . . . . . . . Parts Attached 33 | 7 5 2 . 2 14 3 Power 6 | 1 1 . . 1 3 . Engine 3 | 1 1 . . . 1 . Core 3 | . . . . 1 2 . Reactor . | . . . . . . . Propulsion 13 | 2 2 1 . 1 6 1 Treads . | . . . . . . . Leg . | . . . . . . . Wheel 8 | 2 . . . . 5 1 Hover 1 | . . . . . 1 . Flight 4 | . 2 1 . 1 . . Utility 7 | 1 . 1 . . 3 2 Device 3 | . . . . . 2 1 Storage 2 | 1 . 1 . . . . Processor 1 | . . . . . . 1 Hackware . | . . . . . . . Protection 1 | . . . . . 1 . Artifact . | . . . . . . . Weapon 7 | 3 2 . . . 2 . Energy Gun . | . . . . . . . Energy Cannon . | . . . . . . . Ballistic Gun 6 | 3 1 . . . 2 . Ballistic Cannon . | . . . . . . . Launcher 1 | . 1 . . . . . Special Weapon . | . . . . . . . Impact Weapon . | . . . . . . . Slashing Weapon . | . . . . . . . Piercing Weapon . | . . . . . . . Special Melee Weapon . | . . . . . . . Unidentified Prototypes 1 | . . . . . 1 . Parts Lost 21 | . 3 . . 1 8 9 Power 3 | . 1 . . . . 2 Propulsion 11 | . 1 . . 1 5 4 Utility 5 | . . . . . 3 2 Weapon 2 | . 1 . . . . 1 Highest Loss Streak 9 | . 3 . . 1 4 9 Average Slot Usage (%) 57 | . 72 55 55 45 57 52 Engine 5 | . 12 11 11 9 3 4 Core 4 | . . . . . 7 4 Wheel 12 | . 20 . . . 10 16 Hover 4 | . . . . . 6 3 Flight 7 | . 5 33 33 27 5 . Device 4 | . . . . . 5 5 Storage 7 | . 11 11 11 9 7 3 Processor 1 | . . . . . . 6 Protection 1 | . . . . . 2 . Ballistic Gun 6 | . 19 . . . 6 4 Naked Turns . | . . . . . . . Heaviest Build 30 | 12 14 9 9 10 30 26 Greatest Support 52 | 32 32 12 12 12 52 36 Greatest Overweight (x) 1 | . . . . . 1 . Average Overweight (x) . | . . . . . . . Largest Inventory Capacity 6 | 6 6 6 6 6 6 6 Average Capacity 5 | 5 5 5 6 6 6 5 Most Carried 6 | 4 6 5 5 6 6 6 Average Carried 4 | 2 4 4 5 5 5 4 Final Capacity 6 | 6 4 6 6 6 6 4 Final Carried 6 | 4 4 5 5 6 6 4 Class Distribution -------------------- 100% | Mutant Dominant Class ---------------- Mutant | -10/Materials Mutant | -9/Materials Mutant | -9/Mines Mutant | -8/Materials Mutant | -7/Factory Mutant | -6/Factory Resources | -11 -10 -9 -9 -8 -7 -6 ----------- Run | Scr Mat Mat Min Mat Fac Fac Matter Collected 253 | 213 . . . . 40 . Remotely . | . . . . . . . Salvage Created 42 | . 2 . . . 40 . Parts 5 | . 3 . . . 2 . Haulers Intercepted . | . . . . . . . Recyclers Shooed . | . . . . . . . Parts Field Recycled . | . . . . . . . Retrieved Matter . | . . . . . . . Parts Self-Destructed . | . . . . . . . Prevented . | . . . . . . . Kills | -11 -10 -9 -9 -8 -7 -6 ------- Run | Scr Mat Mat Min Mat Fac Fac Combat Hostiles Destroyed 4 | . 3 . . . 1 . Guns 2 | . 1 . . . 1 . AOE 2 | . 2 . . . . . Classes Destroyed 2 | . 1 . . . 1 . Swarmer 3 | . 3 . . . . . Hunter 1 | . . . . . 1 . Best Kill Streak 3 | . 3 . . . 1 . Combat Bots Only 3 | . 3 . . . 1 . Max Kills in Single Turn 1 | . 1 . . . 1 . Gunslinging . | . . . . . . . Exploded 1 | . 1 . . . . . Melee . | . . . . . . . Uniques/NPCs Destroyed . | . . . . . . . Combat | -11 -10 -9 -9 -8 -7 -6 -------- Run | Scr Mat Mat Min Mat Fac Fac Damage Taken 3082 | . 321 85 25 86 1078 1487 Core 1132 | . 18 43 11 48 149 863 Absorbed by Shields . | . . . . . . . Core Remaining (%) 89 | 100 92 . 86 91 78 . Volleys Fired 8 | . 5 . . . 3 . Largest 2 | . 2 . . . 2 . Hottest 56 | . 50 . . . 56 . Shots Fired 16 | . 10 . . . 6 . Gun 12 | . 6 . . . 6 . Cannon . | . . . . . . . Launcher 4 | . 4 . . . . . Special . | . . . . . . . Kinetic 12 | . 6 . . . 6 . Thermal . | . . . . . . . Explosive 4 | . 4 . . . . . Electromagnetic . | . . . . . . . Robot Hit Streak 7 | . 2 . . . 7 . Robot Miss Streak 3 | . 3 . . . . . Penetration Max . | . . . . . . . Secondary Targets 1 | . . . . . 1 . Max Gunslinging Chain 1 | . . . . . 1 . Shots Hit Robots 10 | . 4 . . . 6 . Core Hits 9 | . 4 . . . 2 3 Critical Hits . | . . . . . . . Critical Kills . | . . . . . . . Critical Parts Destroyed . | . . . . . . . Melee Attacks . | . . . . . . . Impact . | . . . . . . . Slashing . | . . . . . . . Piercing . | . . . . . . . Sneak Attacks . | . . . . . . . Combat Hostiles . | . . . . . . . Follow-up Attacks . | . . . . . . . Damage Inflicted 376 | . 259 . . . 98 19 Guns 141 | . 43 . . . 98 . Cannons . | . . . . . . . Explosions 216 | . 216 . . . . . Melee . | . . . . . . . Ramming 19 | . . . . . . 19 Kinetic 141 | . 43 . . . 98 . Thermal . | . . . . . . . Explosive 216 | . 216 . . . . . Electromagnetic . | . . . . . . . Impact . | . . . . . . . Slashing . | . . . . . . . Piercing . | . . . . . . . Highest Corruption 5 | . 5 . . . 2 1 Average Corruption 4 | . 5 . . . 2 1 Corruption Purged . | . . . . . . . Effects 1 | . 1 . . . . . Data Loss (minor) 1 | . 1 . . . . . Overload Shots . | . . . . . . . Overflow Damage . | . . . . . . . Projectiles . | . . . . . . . Explosions . | . . . . . . . Melee . | . . . . . . . Knockbacks . | . . . . . . . Impact . | . . . . . . . Kinetic . | . . . . . . . Secondary . | . . . . . . . Self-Inflicted Damage 57 | . 48 . . . . 9 Shots 2 | . 2 . . . . . Rammed 4 | . . . . . . 4 Targets Rammed 4 | . . . . . . 4 Kicked . | . . . . . . . Crushed . | . . . . . . . Highest Temperature 12 | . . . . . 12 . Average Temperature 6 | . . . . . 6 . Received Heat Transfer 705 | . . 36 15 36 576 42 Siege Activations . | . . . . . . . Robots Corrupted . | . . . . . . . Combat Hostiles . | . . . . . . . Parts Fried . | . . . . . . . Impact Corruptions . | . . . . . . . Robots Melted . | . . . . . . . Combat Hostiles . | . . . . . . . Parts Melted . | . . . . . . . Heat Transferred . | . . . . . . . Parts Sabotaged . | . . . . . . . Parts Stolen . | . . . . . . . Parts Stripped . | . . . . . . . Power Chain Reactions . | . . . . . . . Missiles Intercepted . | . . . . . . . Alert | -11 -10 -9 -9 -8 -7 -6 ------- Run | Scr Mat Mat Min Mat Fac Fac Peak Influence 117 | . 100 117 45 97 114 98 Initial 48 | . . 42 45 17 44 48 Average 65 | . 40 64 45 62 87 65 Maximum Alert Level . | . . . . . . . Low Security (%) 100 | 100 100 100 100 100 100 100 Level 1 . | . . . . . . . Level 2 . | . . . . . . . Level 3 . | . . . . . . . Level 4 . | . . . . . . . Level 5 . | . . . . . . . High Security . | . . . . . . . Max Security . | . . . . . . . Squads Dispatched 4 | . . 1 . 1 1 1 Investigation . | . . . . . . . Extermination . | . . . . . . . Reinforcement 4 | . . 1 . 1 1 1 Assault . | . . . . . . . Garrison . | . . . . . . . Intercept . | . . . . . . . Construction Impeded . | . . . . . . . Haulers Reinforced . | . . . . . . . Stealth | -11 -10 -9 -9 -8 -7 -6 --------- Run | Scr Mat Mat Min Mat Fac Fac Distress Signals . | . . . . . . . Communications Jammed 2 | . . . . . 2 . Distress Signals 2 | . . . . . 2 . Times Spotted 56 | . 5 11 2 11 15 12 Peak Tracking Total 11 | . 3 11 2 10 6 9 Tactical Retreats 5 | . . . . 1 2 2 Traps | -11 -10 -9 -9 -8 -7 -6 ------- Run | Scr Mat Mat Min Mat Fac Fac Traps Triggered 3 | . . . . . 3 . Indirectly . | . . . . . . . Trap Hack Attempts . | . . . . . . . Triggered . | . . . . . . . Disarmed . | . . . . . . . Reprogrammed . | . . . . . . . Reused . | . . . . . . . Traps Extracted . | . . . . . . . Installed . | . . . . . . . Triggered . | . . . . . . . Machines | -11 -10 -9 -9 -8 -7 -6 ---------- Run | Scr Mat Mat Min Mat Fac Fac Machines Disabled 1 | . 1 . . . . . Max in Single Turn 1 | . 1 . . . . . Machines Sabotaged . | . . . . . . . Garrisons Compromised . | . . . . . . . Overloaded Fab Kills . | . . . . . . . Fab Network Shutdowns . | . . . . . . . Hacking | -11 -10 -9 -9 -8 -7 -6 --------- Run | Scr Mat Mat Min Mat Fac Fac Machines Accessed . | . . . . . . . Terminals . | . . . . . . . Fabricators . | . . . . . . . Repair Stations . | . . . . . . . Recycling Units . | . . . . . . . Scanalyzers . | . . . . . . . Garrison Access . | . . . . . . . Total Hacks . | . . . . . . . Successful . | . . . . . . . Failed . | . . . . . . . Catastrophic . | . . . . . . . Database Lockouts . | . . . . . . . Manual . | . . . . . . . Terminals . | . . . . . . . Fabricators . | . . . . . . . Repair Stations . | . . . . . . . Recycling Units . | . . . . . . . Scanalyzers . | . . . . . . . Garrison Access . | . . . . . . . Terminal Hacks . | . . . . . . . Fabricator Hacks . | . . . . . . . Repair Station Hacks . | . . . . . . . Recycling Unit Hacks . | . . . . . . . Scanalyzer . | . . . . . . . Garrison Access Hacks . | . . . . . . . Unauthorized Hacks . | . . . . . . . Terminals . | . . . . . . . Fabricators . | . . . . . . . Repair Stations . | . . . . . . . Recycling Units . | . . . . . . . Scanalyzers . | . . . . . . . Garrison Access . | . . . . . . . Data Cores Recovered . | . . . . . . . Used . | . . . . . . . Hacking Detections . | . . . . . . . Full Trace Events . | . . . . . . . Feedback Events . | . . . . . . . Feedback Blocked . | . . . . . . . Robot Schematics Acquired . | . . . . . . . Robots Built . | . . . . . . . Matter . | . . . . . . . Time . | . . . . . . . Total Robot Build Rating . | . . . . . . . Part Schematics Acquired . | . . . . . . . Parts Built . | . . . . . . . Matter . | . . . . . . . Time . | . . . . . . . Total Part Build Rating . | . . . . . . . Parts Repaired . | . . . . . . . Time . | . . . . . . . Parts Recycled . | . . . . . . . Recycled Matter . | . . . . . . . Retrieved Matter . | . . . . . . . Retrieved Components . | . . . . . . . Parts Scanalyzed . | . . . . . . . Part Schematics Acquired . | . . . . . . . Parts Damaged . | . . . . . . . Bothacking | -11 -10 -9 -9 -8 -7 -6 ------------ Run | Scr Mat Mat Min Mat Fac Fac Used RIF Installer . | . . . . . . . Robots Hacked . | . . . . . . . Non-combat . | . . . . . . . Combat . | . . . . . . . Robot Hacks Applied . | . . . . . . . Relay Couplers Released . | . . . . . . . Robots Rewired . | . . . . . . . Allies Hacked . | . . . . . . . Hacks Repelled . | . . . . . . . Allies | -11 -10 -9 -9 -8 -7 -6 -------- Run | Scr Mat Mat Min Mat Fac Fac Total Allies . | . . . . . . . Largest Group . | . . . . . . . Highest-Rated Group . | . . . . . . . Highest-Rated Ally . | . . . . . . . Total Orders . | . . . . . . . Ally Attacks . | . . . . . . . Total Damage . | . . . . . . . Kills . | . . . . . . . Allies Corrupted . | . . . . . . . Allies Melted . | . . . . . . . Intel | -11 -10 -9 -9 -8 -7 -6 ------- Run | Scr Mat Mat Min Mat Fac Fac Robot Analysis Total . | . . . . . . . Derelict Logs Recovered 1 | . . . 1 . . . Drone Launches . | . . . . . . . Drone Recoveries . | . . . . . . . Exploration | -11 -10 -9 -9 -8 -7 -6 ------------- Run | Scr Mat Mat Min Mat Fac Fac Turns Passed 870 | 66 103 69 10 38 357 227 Spaces Moved 1110 | 53 92 187 29 96 393 260 Core 57 | 9 . . . . . 48 Treads . | . . . . . . . Legs . | . . . . . . . Wheels 606 | 44 62 . . . 288 212 Hover . | . . . . . . . Flight 447 | . 30 187 29 96 105 . Fastest Speed 34 | 50 37 34 34 34 34 50 Average Speed 68 | 91 79 34 34 34 80 82 Slowest Speed 117 | 100 100 37 34 34 117 90 Overloaded Moves . | . . . . . . . Propulsion Burnouts . | . . . . . . . Robots Hopped 8 | . . 4 2 . 2 . Cave-ins Triggered 1 | . 1 . . . . . Exploration Rate (%) 16 | 3 26 20 16 17 19 11 Regions Visited 6 Branch Regions 1 Pre-discovered Areas . | . . . . . . . Known Exits Taken . | . . . . . . . Unknown Exits Taken 6 | 1 1 1 1 1 1 . Scrap Searched . | . . . . . . . Spaces Dug . | . . . . . . . Terrain Destroyed 18 | . 18 . . . . . Melee . | . . . . . . . Projectile . | . . . . . . . AOE 18 | . 18 . . . . . Terrain Rammed . | . . . . . . . Walls Destroyed . | . . . . . . . Machines Disabled . | . . . . . . . Actions | -11 -10 -9 -9 -8 -7 -6 --------- Run | Scr Mat Mat Min Mat Fac Fac Total 1199 | 70 114 187 26 101 427 274 Wait 1 | 1 . . . . . . Move 1089 | 52 91 178 25 95 388 260 Hop 7 | . . 4 1 . 2 . Pick Up 41 | 10 5 3 . 3 15 5 Fast Attach . | . . . . . . . Attach 29 | 6 3 2 . 2 13 3 Detach 4 | . 3 . . . 1 . Swap 4 | 1 2 . . . 1 . Drop 12 | . 5 . . 1 4 2 Fire 8 | . 5 . . . 3 . Melee . | . . . . . . . Ram 4 | . . . . . . 4 Kick . | . . . . . . . Crush . | . . . . . . . Escape Stasis . | . . . . . . . Rewire . | . . . . . . . Trap . | . . . . . . . Miscellaneous . | . . . . . . . Route ------- -11/Scrapyard -10/Materials -9/Materials -9/Mines -8/Materials -7/Factory -6/Factory History --------- Turn | Location | Event 16 | -11/Scrapyard | Discovered new exit (range 15) 67 | -11/Scrapyard | Entered Materials 133 | -10/Materials | Crushed by falling debris 164 | -10/Materials | Lost 3 parts (1p1n1w) 167 | -10/Materials | Discovered new exit (range 7) 170 | -10/Materials | Entered another Materials area 170 | -9/Materials | Evolved 2 slots: Propulsion x2 237 | -9/Materials | Discovered new exit (range 8) 239 | -9/Materials | Entered Mines 245 | -9/Mines | Learned Materials security intel 247 | -9/Mines | Discovered new exit (range 4) 249 | -9/Mines | Entered Materials 249 | -8/Materials | Evolved 2 slots: Power x1, Utility x1 279 | -8/Materials | Discovered new exit (range 3) 287 | -8/Materials | Entered Factory 287 | -7/Factory | Evolved 2 slots: Propulsion x1, Utility x1 319 | -7/Factory | Build established: Mutant 492 | -7/Factory | Lost 4 parts (2n2u) 629 | -7/Factory | Discovered new exit (range 15) 644 | -7/Factory | Entered another Factory area 644 | -6/Factory | Evolved 2 slots: Propulsion x1, Utility x1 857 | -6/Factory | Core integrity fell below 50% 868 | -6/Factory | Core integrity fell below 20% 871 | -6/Factory | Destroyed by H-66 Slayer with Gauss Rifle Last Messages --------------- Slug penetrates Wall. Penetrated by Slug. R-10 Processor collects Wheel. K-01 Serf collects debris. Penetrated by Slug. Arm. Wheel destroyed. Penetrated by Slug. Arm. Wheel destroyed. Adv. Terrain Scanner destroyed. Slammed into S-27 Virus. Destabilizing: System interference. Imp. Terrain Scan Processor temporarily disabled. Slammed into S-27 Virus. Penetrated by Slug. Slammed into S-27 Virus. Slug penetrates S-27 Virus. S-27 Virus destroyed. Penetrated by Slug. P-60 Hacker resets S-27 Virus, system corruption cleaned. Penetrated by Slug. Map ----- +----------------------------------------------------+ | ?????????????????????????????????????????????????? | | ?????????????????????????????????????????????????? | | ?????????????????????????????????????????????????? | | ?????????????????????????????????????????????????? | | ?????????????????????????????????????????????????? | | ?????????????????????????????????????????????????? | | ?????????????????????????????????????????????????? | | ?????????????????????????????????????????????????? | | ?????????????????????????????????????????????????? | | ?????????????????????????????????????????????????? | | ??????????????????????? ??????????????????????? | | ????????????????????? ??????????????????????? | | ?????????????????? !!! #?????????????????????? | | ????????????????A !!! #?????????????????????? | | ?????????????? !! k #??? ?????????????????? | | ?????????????? #??/#?????????????????? | | ????????????? !### #?????????????????? | | ?????????????# #?????????????????? | | ?????????????# ??????????????????? | | ?????????????# ??????????????????? | | ??????????????? ???????????????????? | | ??????????????? ? ????????????????????? | | ?????????????????? ?????????????????????? | | ????????????????????? ??????????????????????? | | ?????????????? ??? ???# #?????????????????#????? | | ??????????????????????# @#??????????????????????? | | ??????????????????????# ##?????#???????????????? | | ??????????????????????# #???#??????????????????? | | ??????????? ????????### Y###??????????#?????????? | | ????????????? ?????## ##????#????#??#######? | | ?????????? ?????? ??# ! [############### #? | | ????????????????????# %= ! #? | | ?????????"??????????# #? | | ????????????????????# ! #? | | ??????????????? ????# ##+############ #? | | ??????#??? ???? ## h # ???"??????## ##? | | ????? ???###????????## ## "?????????#?# #?? | | ???? ?#??#???##???#??# h## ""??????????# #?? | | ???????????#??#?#????# ## ""?? ?????#?# #?? | | ???????#?????????#???# ## ??? ????# #?? | | ????? ???#???????????# #######????#????# #?? | | ???? ?#????????#????## #??????? ??????? #?? | | ?????????#??#?#????### ###?????????????# #?? | | #????????########### #??????? ?????? #?? | | ???????##?# #???"? ???????? #?? | | ??????????# # ?""?????????? #?? | | ? ????????# #?"?????"??? ?? #?? | | ????? ????# +?"???????????? #?? | | ??????#??## # ???"?""?????? ??? | | ???#??###?# +???"????"??????????? | +----------------------------------------------------+ Best States ------------- Heat Dissipation 37 Energy Generation 28 Energy Capacity 360 Matter Stores 243 Matter Capacity 300 Sight Range 16 Terrain Scan Range 20 Terrain Scan Density 110 Jamming Range 8 Armor Coverage 150 Resistance: EM 15 Evasion (%) 63 Item Schematics ----------------- None Robot Schematics ------------------ None Fabricated ------------ Nothing Alien Tech Used ----------------- None Achievements -------------- None Challenges ------------ None Game ------ Seed GatlingMatterBox Manual? 0 Play Time 00:18:17 Cumulative 22.5 hours Start 2021.08.19 @ 00:02:09 End 2021.08.19 @ 00:17:20 Sessions 1 Manual Loads 0 Difficulty Rogue Special Mode None Game No. 63 Rogue 43 Adventurer 20 Explorer 0 Win Type - Total 1 Types 1/0/0/0/0/0/0/0/0 Lore% 20 Gallery% 43 Achievement% 30 Wizard Run 0 Options --------- ASCII 0 Keyboard 0 Movement Numpad Keybinds 0 Fullscreen 1 Font 18/SmallcapsGlow Map View 76x50 Tactical HUD 0 Map Filters NONE Filters NONE Steam 1 RUN: abf5ba5a-9d3d-4822-8187-36203399fb84